Cogmind - Beta 16.1 *** ADVENTURER MODE // 2026.02.17 @ 21:13:38 Player: il2076 Result: Destroyed by P-60 Hacker with Shock Rifle Performance ------------- Evolutions (3) 1500 Regions Visited (6) 1200 Robots Destroyed (48) 240 Value Destroyed (1718) 1718 Prototype IDs (2) 40 Alien Tech Used (0) 0 Bonus (208) 208 TOTAL SCORE: 4906 Bonus ------- Follower Combat Kills 208 Cogmind --------- Core Integrity 0/700 Matter 300/300 Energy 100/100 System Corruption 4% Temperature Cool (0) Movement Core (50) Location -7/Factory Parts ------- > --- POWER (2) -------- (None) > --- PROPULSION (3) --- (None) > --- UTILITY (5) ------ Improved Targeting Computer > --- WEAPON (3) ------- Katana > --- INVENTORY (5) ---- Huge Storage Unit Mace Heavy Mace Heavy Flail Peak State ------------ > --- POWER ------------ Light Nuclear Core Light Nuclear Core > --- PROPULSION ------- Carbon-fiber Leg Titanium Leg > --- UTILITY ---------- Small Storage Unit Improved Sensor Array Improved Targeting Computer Hardened Light Armor Plating > --- WEAPON ----------- Assault Cannon Improved Datajack Katana > --- INVENTORY -------- Improved Ion Engine Improved Aluminum Leg Carbon-fiber Leg Improved Medium Laser Light Assault Rifle Mace Heavy Mace Heavy Flail [Rating: 30] Favorites ----------- Power Light Nuclear Core Engine Improved Ion Engine Power Core Light Nuclear Core Propulsion Light Treads Treads Light Treads Leg Improved Aluminum Leg Wheel Compact Wheel Flight Unit Flight Unit Utility Small Storage Unit Device ECM Suite Storage Small Storage Unit Processor Improved Targeting Computer Protection Light Armor Plating Weapon Light Assault Rifle Energy Gun Improved Medium Laser Ballistic Gun Light Assault Rifle Ballistic Cannon Assault Cannon Impact Weapon Mace Slashing Weapon Katana Special Melee Weapon Improved Datajack Build | -11 -10 -10 -10 -9 -8 -7 ------- Run | Yrd Mat Min Exi Min Mat Fac Slots Evolved 6 | . . . . . 4 2 Power 1 | . . . . . 1 . Propulsion 1 | . . . . . . 1 Utility 3 | . . . . . 2 1 Weapon 1 | . . . . . 1 . Parts Attached 53 | 6 5 3 2 . 31 6 Power 10 | 1 1 . . . 6 2 Engine 4 | 1 . . . . 2 1 Core 6 | . 1 . . . 4 1 Reactor . | . . . . . . . Propulsion 16 | 2 . 3 2 . 7 2 Treads 2 | . . . 2 . . . Leg 9 | . . . . . 7 2 Wheel 2 | 2 . . . . . . Hover . | . . . . . . . Flight 3 | . . 3 . . . . Utility 11 | 1 2 . . . 7 1 Device 3 | . 1 . . . 2 . Storage 2 | 1 . . . . . 1 Processor 3 | . 1 . . . 2 . Hackware . | . . . . . . . Protection 3 | . . . . . 3 . Artifact . | . . . . . . . Weapon 16 | 2 2 . . . 11 1 Energy Gun 1 | . . . . . 1 . Energy Cannon . | . . . . . . . Ballistic Gun 8 | 2 1 . . . 4 1 Ballistic Cannon 1 | . . . . . 1 . Launcher . | . . . . . . . Special Weapon . | . . . . . . . Impact Weapon 3 | . 1 . . . 2 . Slashing Weapon 2 | . . . . . 2 . Piercing Weapon . | . . . . . . . Special Melee Weapon 1 | . . . . . 1 . Unidentified Prototypes 2 | . . . . . 2 . Parts Lost 22 | . 2 3 . . 1 16 Power 5 | . 1 . . . . 4 Propulsion 7 | . . 2 . . . 5 Utility 5 | . 1 . . . 1 3 Weapon 5 | . . 1 . . . 4 Highest Loss Streak 7 | . 2 2 . . 1 7 To Critical Strikes . | . . . . . . . Average Backups 3 | . 1 2 2 2 6 5 Power . | . . . . . 1 . Propulsion . | . . . . . 1 . Utility . | . . . . . . . Weapon 2 | . 1 2 2 2 3 3 Tool/Special . | . . . . . . . Unused Backups 2 | . . . . . 2 . Power 1 | . . . . . 1 . Propulsion 1 | . . . . . 1 . Utility . | . . . . . . . Weapon . | . . . . . . . Tool/Special . | . . . . . . . Average Slot Usage (%) 89 | . 94 97 90 100 91 59 Engine 1 | . 8 . . . 2 1 Core 12 | . 5 14 14 14 14 5 Treads 6 | . . . 16 28 4 . Leg 6 | . . . . . 13 18 Wheel 5 | . 28 18 . . . . Flight 3 | . . 8 11 . . . Device 9 | . 2 13 14 14 9 1 Storage 10 | . 14 14 14 14 9 1 Processor 3 | . 6 . . . 7 7 Protection 2 | . . . . . 6 1 Ballistic Gun 18 | . 18 25 18 28 16 5 Impact Weapon 2 | . 9 1 . . 3 . Peak Build Rating 30 | 6 10 10 10 9 30 30 Average Rating 14 | 4 8 8 8 9 21 19 On Entrance 10 | . 6 9 8 9 9 30 Avg Prop Armor Cover (%) 9 | . . . . . 9 . Naked Turns . | . . . . . . . Heaviest Build 30 | 10 15 15 14 14 30 29 Greatest Support 45 | 26 26 26 40 40 40 45 Greatest Overweight (x) 3 | . . 3 1 . 2 . Average Overweight (x) . | . . . . . . . Largest Inventory Capacity 25 | 8 8 8 8 8 8 25 Average Capacity 7 | 6 8 8 8 8 8 5 Most Carried 8 | 1 3 4 3 2 8 8 Average Carried 3 | . 1 2 2 2 6 5 Final Capacity 8 | 8 8 8 8 8 8 5 Final Carried 8 | 1 2 3 2 2 8 4 Class Distribution -------------------- 69% | Mutant 9% | Gunner 6% | Commander-Mutant 4% | Scavenger-Mutant 4% | Scavenger-Tank 3% | Scavenger-Gunner Dominant Class ---------------- Mutant | -10/Materials Mutant | -10/Mines Mutant | -10/Exiles Commander-Mutant | -9/Mines Mutant | -8/Materials Mutant | -7/Factory Resources | -11 -10 -10 -10 -9 -8 -7 ----------- Run | Yrd Mat Min Exi Min Mat Fac Matter Collected 1382 | 208 82 125 . 61 642 264 Remotely . | . . . . . . . Salvage Created 1732 | . 192 100 . . 974 466 Parts 98 | . 10 5 . 2 58 23 Haulers Intercepted . | . . . . . . . Recyclers Shooed 1 | . . . . . 1 . Parts Field Recycled . | . . . . . . . Retrieved Matter . | . . . . . . . Parts Self-Destructed . | . . . . . . . Prevented . | . . . . . . . Parts Restored . | . . . . . . . Kills | -11 -10 -10 -10 -9 -8 -7 ------- Run | Yrd Mat Min Exi Min Mat Fac Combat Hostiles Destroyed 44 | . 4 5 . . 23 12 Melee 9 | . 2 . . . 6 1 Guns 22 | . 1 3 . . 13 5 Cannons 6 | . . . . . 2 4 Classes Destroyed 5 | . 2 1 . 1 1 . Worker 2 | . . . . 1 1 . Watcher 2 | . 1 . . . 1 . Swarmer 12 | . . 3 . . 6 3 Grunt 20 | . 4 2 . . 8 6 Sentry 12 | . . . . . 9 3 Best Kill Streak 6 | . 2 2 . 1 6 4 Combat Bots Only 6 | . 2 2 . . 6 4 Max Kills in Single Turn 2 | . 1 1 . 1 2 1 Gunslinging 1 | . . . . . 1 . Exploded . | . . . . . . . Melee 1 | . 1 . . . 1 1 Uniques/NPCs Destroyed . | . . . . . . . Combat | -11 -10 -10 -10 -9 -8 -7 -------- Run | Yrd Mat Min Exi Min Mat Fac Hostile Shots Fired 598 | . 20 47 . . 128 403 Missed 194 | . 5 15 . . 32 142 Hits 404 | . 15 32 . . 96 261 Projectile 404 | . 15 32 . . 96 261 AOE 1 | . . . . . . 1 Critical Strikes 7 | . . 3 . . 3 1 Damage Taken 3773 | . 235 281 . . 1191 2066 Core 1047 | . 21 100 . . 222 704 Absorbed by Shields . | . . . . . . . Ignored by Resistances 1120 | . 44 87 . . 341 648 Core Remaining (%) 70 | 100 . . . 51 59 . Volleys Fired 137 | . 25 15 . . 46 51 Largest 3 | . 2 2 . . 3 2 Hottest 93 | . 40 40 . . 66 93 Shots Fired 261 | . 31 30 1 . 117 82 Gun 229 | . 31 30 1 . 110 57 Cannon 32 | . . . . . 7 25 Launcher . | . . . . . . . Special . | . . . . . . . Kinetic 228 | . 31 30 1 . 117 49 Thermal 33 | . . . . . . 33 Explosive . | . . . . . . . Electromagnetic . | . . . . . . . Robot Hit Streak 28 | . 12 6 3 . 28 19 Robot Miss Streak 3 | . 3 3 . . 1 3 Penetration Max . | . . . . . . . Secondary Targets 3 | . . . . . 2 1 Max Gunslinging Chain 1 | . . . . . 1 1 Shots Hit Robots 236 | . 27 28 1 . 106 74 Core Hits 91 | . 6 5 . . 54 26 Critical Kills 2 | . 1 . . . 1 . Critical Parts Destroyed 5 | . 1 . . . 4 . Critical Strikes 12 | . 2 . . . 5 5 Burn 3 | . . . . . . 3 Destroy 2 | . 1 . . . 1 . Smash 5 | . 1 . . . 4 . Sever 2 | . . . . . . 2 Melee Attacks 65 | . 11 15 3 . 24 12 Impact 47 | . 11 15 3 . 18 . Slashing 17 | . . . . . 6 11 Piercing . | . . . . . . . Sneak Attacks . | . . . . . . . Combat Hostiles . | . . . . . . . Follow-up Attacks . | . . . . . . . Damage Inflicted 4029 | . 305 542 7 . 1680 1495 Guns 2099 | . 184 127 7 . 1005 776 Cannons 657 | . . . . . 154 503 Explosions . | . . . . . . . Melee 1202 | . 121 403 . . 462 216 Ramming 71 | . . 12 . . 59 . Kinetic 2272 | . 184 127 7 . 1159 795 Thermal 484 | . . . . . . 484 Explosive . | . . . . . . . Electromagnetic . | . . . . . . . Impact 865 | . 121 403 . . 341 . Slashing 337 | . . . . . 121 216 Piercing . | . . . . . . . Highest Corruption 3 | . 1 1 1 1 2 3 Average Corruption 1 | . 1 1 1 1 1 1 Corruption Purged . | . . . . . . . Corruption Blocked . | . . . . . . . Effects 21 | . 1 4 6 2 7 1 Message Errors 7 | . . 2 1 . 3 1 Matter Fused 5 | . . 2 2 . 1 . Heat Flow Errors 3 | . . . . . 3 . Energy Discharges 3 | . . . 1 2 . . Data Loss (major) 1 | . . . 1 . . . Misfires 2 | . 1 . 1 . . . Overload Shots . | . . . . . . . Overflow Damage 178 | . 45 24 . . 108 1 Projectiles 1 | . . . . . . 1 Explosions . | . . . . . . . Melee 177 | . 45 24 . . 108 . Knockbacks 2 | . 1 . . . . 1 Impact 1 | . 1 . . . . . Kinetic 1 | . . . . . . 1 Secondary . | . . . . . . . Self-Inflicted Damage 6 | . . 6 . . . . Shots . | . . . . . . . Rammed 28 | . . 3 . . 25 . Targets Rammed 30 | . . 3 . 1 26 . Kicked . | . . . . . . . Crushed 2 | . . . . 1 1 . Highest Temperature 403 | . 14 16 2 . 403 379 Average Temperature 87 | . 4 5 2 . 94 112 Received Heat Transfer 1563 | . 105 165 . . 690 603 Effects 4 | . . . . . 3 1 Shutdowns 2 | . . . . . 2 . Energy Bleed 1 | . . . . . 1 . Interference 1 | . . . . . . 1 Siege Activations . | . . . . . . . Martial Activations . | . . . . . . . Shielding Activations . | . . . . . . . Robots Disrupted . | . . . . . . . Combat Hostiles . | . . . . . . . Robots Corrupted 5 | . 1 2 . . 2 . Combat Hostiles 5 | . 1 2 . . 2 . Parts Fried 4 | . 1 1 . . 2 . Impact Corruptions 9 | . 1 2 . . 6 . Robots Melted 2 | . . . . . . 2 Combat Hostiles 2 | . . . . . . 2 Parts Melted 6 | . . . . . . 6 Heat Transferred 1258 | . . . . . . 1258 Parts Sabotaged . | . . . . . . . Parts Stolen . | . . . . . . . Parts Stripped . | . . . . . . . Power Chain Reactions . | . . . . . . . Alert | -11 -10 -10 -10 -9 -8 -7 ------- Run | Yrd Mat Min Exi Min Mat Fac Maximum Alert Level . | . . . . . . . Low Security (%) 100 | 100 100 100 . 100 100 100 Level 1 . | . . . . . . . Level 2 . | . . . . . . . Level 3 . | . . . . . . . Level 4 . | . . . . . . . Level 5 . | . . . . . . . High Security . | . . . . . . . Max Security . | . . . . . . . Peak Influence 138 | . 69 50 . 5 138 80 Initial 11 | . . 11 . . . . Average 27 | . 14 6 . . 47 24 Influence Increases 1463 | . 159 152 . 5 857 290 Destroy 0b10 Robot/C 1000 | . 80 100 . . 580 240 Destroy 0b10 Robot/NC 20 | . 5 . . 5 10 . Destroy Leader 224 | . 22 20 . . 142 40 Allied During Kill 12 | . . . . . 12 . Successful Hack 9 | . 1 . . . 8 . Disable Machine 27 | . . . . . 18 9 Destroy Structure 21 | . 6 2 . . 12 1 Lose Combat Pursuer 150 | . 45 30 . . 75 . Influence Decreases 1453 | . 123 188 . 5 857 280 Entered New Map 25 | . . 25 . . . . Time Decay 1271 | . 103 163 . 5 791 209 Lost Part 101 | . 20 . . . 10 71 Lost Ally 56 | . . . . . 56 . Squads Dispatched 10 | . . . . . 5 5 Investigation 1 | . . . . . 1 . Extermination 1 | . . . . . . 1 Reinforcement 1 | . . . . . 1 . Assault . | . . . . . . . Garrison 7 | . . . . . 3 4 Intercept . | . . . . . . . Searches Triggered . | . . . . . . . Construction Impeded . | . . . . . . . Haulers Reinforced . | . . . . . . . Active Scanning Responses . | . . . . . . . Cargo Convoy Interrupts . | . . . . . . . Stealth | -11 -10 -10 -10 -9 -8 -7 --------- Run | Yrd Mat Min Exi Min Mat Fac Distress Signals 4 | . 1 . . . 2 1 Communications Jammed . | . . . . . . . Distress Signals . | . . . . . . . Times Spotted 79 | . 9 11 . . 40 19 Peak Tracking Total 6 | . 3 3 . . 5 6 Tactical Retreats 12 | . 2 5 . . 5 . ECM-based Alert Blocks 9 | . . 7 . . 2 . Traps | -11 -10 -10 -10 -9 -8 -7 ------- Run | Yrd Mat Min Exi Min Mat Fac Traps Triggered 2 | . . . . . 2 . Indirectly . | . . . . . . . Trap Hack Attempts . | . . . . . . . Triggered . | . . . . . . . Disarmed . | . . . . . . . Reprogrammed . | . . . . . . . Reused . | . . . . . . . Traps Extracted . | . . . . . . . Installed . | . . . . . . . Triggered . | . . . . . . . Machines | -11 -10 -10 -10 -9 -8 -7 ---------- Run | Yrd Mat Min Exi Min Mat Fac Machines Disabled 3 | . . . . . 2 1 Max in Single Turn 1 | . . . . . 1 1 Machines Repaired . | . . . . . . . Machines Dismantled . | . . . . . . . Machines Sabotaged . | . . . . . . . Overloaded Fab Kills . | . . . . . . . Hacking | -11 -10 -10 -10 -9 -8 -7 --------- Run | Yrd Mat Min Exi Min Mat Fac Machines Accessed 15 | . 3 1 4 . 6 1 Terminals 11 | . 3 1 . . 6 1 Fabricators . | . . . . . . . Repair Stations . | . . . . . . . Recycling Units . | . . . . . . . Scanalyzers . | . . . . . . . Garrison Access . | . . . . . . . Total Hacks 67 | . 5 1 49 . 11 1 Successful 64 | . 4 1 49 . 9 1 Failed 3 | . 1 . . . 2 . Catastrophic . | . . . . . . . Database Lockouts . | . . . . . . . Manual 6 | . 2 . . . 4 . Terminals 18 | . 5 1 . . 11 1 Fabricators . | . . . . . . . Repair Stations . | . . . . . . . Recycling Units . | . . . . . . . Scanalyzers . | . . . . . . . Garrison Access . | . . . . . . . Terminal Hacks 62 | . 3 1 49 . 8 1 Record 57 | . 2 . 49 . 6 . Open DSF 1 | . . . . . . 1 Alert Level 1 | . . . . . 1 . Locate Traps 1 | . . . . . 1 . Dispatch Records 1 | . . 1 . . . . Maintenance Status 1 | . 1 . . . . . Fabricator Hacks . | . . . . . . . Repair Station Hacks . | . . . . . . . Recycling Unit Hacks . | . . . . . . . Scanalyzer . | . . . . . . . Garrison Access Hacks . | . . . . . . . Unauthorized Hacks 2 | . 1 . . . 1 . Terminals 2 | . 1 . . . 1 . Assimilate 2 | . 1 . . . 1 . Fabricators . | . . . . . . . Repair Stations . | . . . . . . . Recycling Units . | . . . . . . . Scanalyzers . | . . . . . . . Garrison Access . | . . . . . . . Data Cores Recovered . | . . . . . . . Used . | . . . . . . . Hacking Detections 4 | . 1 . . . 2 1 Full Trace Events 1 | . . . . . 1 . Feedback Events 1 | . . . . . 1 . Corruption 1 | . . . . . 1 . Feedback Blocked . | . . . . . . . Robot Schematics Acquired . | . . . . . . . Robots Built . | . . . . . . . Authchips . | . . . . . . . Time . | . . . . . . . Total Robot Build Rating . | . . . . . . . Part Schematics Acquired . | . . . . . . . Parts Built . | . . . . . . . Authchips . | . . . . . . . Time . | . . . . . . . Total Part Build Rating . | . . . . . . . Part Studies Acquired . | . . . . . . . Parts Repaired . | . . . . . . . Time . | . . . . . . . Parts Recycled . | . . . . . . . Recycled Matter . | . . . . . . . Retrieved Matter . | . . . . . . . Retrieved Components . | . . . . . . . Parts Scanalyzed . | . . . . . . . Part Schematics Acquired . | . . . . . . . Parts Damaged . | . . . . . . . Bothacking | -11 -10 -10 -10 -9 -8 -7 ------------ Run | Yrd Mat Min Exi Min Mat Fac Used RIF Installer . | . . . . . . . Robots Hacked . | . . . . . . . Non-combat . | . . . . . . . Combat . | . . . . . . . Robot Hacks Applied . | . . . . . . . Relay Couplers Released . | . . . . . . . Fabnet Peak Effective % . | . . . . . . . Robots Rewired 4 | . . . 4 . . . Allies Hacked . | . . . . . . . Hacks Repelled . | . . . . . . . Allies | -11 -10 -10 -10 -9 -8 -7 -------- Run | Yrd Mat Min Exi Min Mat Fac Total Allies 4 | . . . 4 . . . Largest Group 4 | . . . 4 4 4 . Highest-Rated Group 58 | . . . 58 58 58 . Highest-Rated Ally 21 | . . . 21 21 21 . Total Orders . | . . . . . . . Ally Attacks 48 | . . . . . 48 . Total Damage 743 | . . . . . 743 . Kills 7 | . . . . . 7 . Allies Corrupted . | . . . . . . . Allies Melted 1 | . . . . . 1 . Intel | -11 -10 -10 -10 -9 -8 -7 ------- Run | Yrd Mat Min Exi Min Mat Fac Active Infowar (turns) 4641 | . 318 917 1096 311 1895 104 Optics 223 | . 223 . . . . . Sensors 309 | . . . . . 205 104 Traps 1301 | . . . . . 1301 . ECM 2808 | . 95 917 1096 311 389 . Robot Analysis Total . | . . . . . . . Derelict Logs Recovered 1 | . . 1 . . . . Drone Launches . | . . . . . . . Drone Recoveries . | . . . . . . . Exploration | -11 -10 -10 -10 -9 -8 -7 ------------- Run | Yrd Mat Min Exi Min Mat Fac Turns Passed 5410 | 58 496 982 1096 311 1895 572 Spaces Moved 3752 | 57 452 879 759 194 1085 326 Core 10 | 9 . . . . . 1 Treads 821 | . . . 387 194 240 . Legs 1170 | . . . . . 845 325 Wheels 1170 | 48 452 670 . . . . Hover . | . . . . . . . Flight 581 | . . 209 372 . . . Fastest Speed 50 | 50 90 90 117 160 120 50 Average Speed 123 | 84 90 100 138 160 140 120 Slowest Speed 285 | 100 90 285 160 160 260 125 Overloaded Moves . | . . . . . . . Propulsion Burnouts . | . . . . . . . Robots Hopped . | . . . . . . . Potential Cave-ins . | . . . . . . . Cave-ins Triggered 1 | . 1 . . . . . Exploration Rate (%) 53 | 4 55 98 91 46 75 7 Regions Visited 6 Branch Regions 3 Pre-discovered Areas 1 | . . . 1 . . . Known Exits Taken . | . . . . . . . Unknown Exits Taken 6 | 1 1 1 1 1 1 . Scrap Searched 2 | . . 1 . 1 . . Spaces Dug 17 | . 6 2 . . 8 1 Terrain Destroyed 17 | . 6 2 . . 8 1 Melee 17 | . 6 2 . . 8 1 Projectile . | . . . . . . . AOE . | . . . . . . . Terrain Rammed . | . . . . . . . Walls Destroyed . | . . . . . . . Machines Disabled . | . . . . . . . Actions | -11 -10 -10 -10 -9 -8 -7 --------- Run | Yrd Mat Min Exi Min Mat Fac Total 4215 | 63 498 930 795 194 1324 411 Wait 85 | . . 10 . . 70 5 Move 3746 | 56 451 878 758 193 1084 326 Hop . | . . . . . . . Pick Up 15 | 1 2 2 . . 9 1 Fast Attach 21 | 6 2 1 . . 8 4 Attach 29 | . 4 3 3 . 13 6 Detach 17 | . 3 2 2 . 8 2 Swap 24 | . . 1 2 . 20 1 Drop 21 | . . . . . 18 3 Fire 137 | . 25 15 . . 46 51 Melee 63 | . 11 15 3 . 22 12 Ram 3 | . . 3 . . . . Kick . | . . . . . . . Crush 27 | . . . . 1 26 . Escape Stasis . | . . . . . . . Rewire 27 | . . . 27 . . . Trap . | . . . . . . . Miscellaneous . | . . . . . . . Route ------- -11/Scrapyard -10/Materials (discovered 2 exits: [*Mat] / *Min) -10/Mines (discovered 3 exits: [*Mat x2] / *Exi) -10/Exiles (discovered 2 exits: [*Min x2]) -9/Mines -8/Materials (discovered 2 exits: *Fac x2) -7/Factory History --------- Turn | Location | Event 4 | -11/Scrapyard | Discovered new exit (range 15) 59 | -11/Scrapyard | Entered Materials 60 | -10/Materials | Met a group of wandering Federalists 206 | -10/Materials | Discovered new exit (range 17) 307 | -10/Materials | Build established: Mutant 368 | -10/Materials | Crushed by falling debris 509 | -10/Materials | Discovered new exit (range 7) 555 | -10/Materials | Entered Mines 845 | -10/Mines | Received a Rocket Launcher from a helpful Derelict 860 | -10/Mines | Discovered new exit (range 13) 1061 | -10/Mines | Deemed a non-threat by the Exiles lab entrance 1062 | -10/Mines | Discovered new exit (range 5) 1240 | -10/Mines | Discovered new exit (range 7) 1263 | -10/Mines | Learned Materials security intel 1537 | -10/Mines | Entered Exiles 1537 | -10/Exiles | Found Exiles lab destroyed 1553 | -10/Exiles | Discovered new exit (range 15) 1670 | -10/Exiles | Learned location of Zion (-7) 1713 | -10/Exiles | Discovered new exit (range 12) 2633 | -10/Exiles | Entered Mines 2633 | -9/Mines | Accompanied by 4 allies 2702 | -9/Mines | Assembled infested the area 2707 | -9/Mines | Assisted by a Guerilla fighting off Assembled 2876 | -9/Mines | Build established: Commander-Mutant 2921 | -9/Mines | Discovered new exit (range 12) 2944 | -9/Mines | Entered Materials 2944 | -8/Materials | Accompanied by 4 allies 2944 | -8/Materials | Evolved 4 slots: Power x1, Utility x2, Weapon x1 3128 | -8/Materials | Garrison activated, responded to threat 3699 | -8/Materials | Build established: Gunner 4499 | -8/Materials | Discovered new exit (range 16) 4542 | -8/Materials | Build established: Mutant 4704 | -8/Materials | Discovered new exit (range 15) 4839 | -8/Materials | Entered Factory 4839 | -7/Factory | Evolved 2 slots: Propulsion x1, Utility x1 4904 | -7/Factory | Garrison activated, responded to threat 4981 | -7/Factory | Lost 6 parts (2p3u1w) 5058 | -7/Factory | Lost 3 parts (1p2n) 5360 | -7/Factory | Garrison activated, responded to threat 5391 | -7/Factory | Core integrity fell below 50% 5409 | -7/Factory | Core integrity fell below 20% 5411 | -7/Factory | Destroyed by P-60 Hacker with Shock Rifle Last Messages --------------- 05363_ S-27 Virus destroyed. 05368_ Jacked P-60 Hacker... 05368_ Command string: Trojan(assimilate) 05368_ No effect. 05368_ Imp. Datajack destroyed. 05368_ Lgt. Nuclear Core destroyed. 05369_ Imp. Medium Laser destroyed. 05372_ Imp. Aluminum Leg destroyed. 05376_ Aluminum Leg destroyed. 05377_ Minigun destroyed. 05387_ Aluminum Leg destroyed. 05396_ S-27 Virus destroyed. 05400_ CLN4MFHNMWD1LY2V%,4Y 05401_ Y-54 Guardian Imp. Heat Sink severed. 05403_ Y-54 Guardian Imp. Light Armor Plating severed. 05407_ R-06 Scavenger collects Imp. Heat Sink. 05410_ R-06 Scavenger collects Imp. Light Armor Plating. 05411_ Nuclear Reactor explodes. 05411_ S-27 Virus destroyed. 05411_ R-06 Scavenger destroyed. Map ----- +----------------------------------------------------+ | | | | | | | | | | | | | | | | | | | | | | | | | | | | | | | | | | | | | ?????????????????????????##########??????????????? | | ????????????????????????? #??????????????? | | ???????????????????????## "T" #??????????????? | | ?????????????????????### [ #??????????????? | | ?????????????????????# *[ p #??????????????? | | ?????????????????????# Y """ ???????????????? | | ?????????????????????# """ #??????????????? | | ?????????????????????# @ """ #??????????????? | | ?????????????????????# Y% #??????????????? | | ?????????????????????## %! +######+#????????? | | ?????????????????????# ! %* ???????? | | ?????????????????????# ???????? | | ?????????????????????# ???????? | | ?????????????###+##### ???????? | | ##????????+ ???????? | | +????????????## #############+#????????? | | #???????????#"" """""" #??????????????????????? | | =#????????????"" """""" #??????????????????????? | | #????????????G """""" ##?????????????????????? | | #????????????"" """""" T#?????????????????????? | | #?????????????" """""" #?????????????????????? | | #?????????????# """""" ##?????????????????????? | | #?????????????# """""" #??????????????????????? | | ############### """""" ######################## | | """""" | | ^ | | | | | | | | | | | | ################################################## | +----------------------------------------------------+ Best States ------------- Heat Dissipation 34 Energy Generation 23 Energy Capacity 420 Matter Stores 300 Matter Capacity 300 Sight Range 18 Robot Scan Range 15 Terrain Scan Density 10 ECM Strength 1 Armor Coverage 150 Resistance: KI 20 Resistance: TH 20 Resistance: EX 20 Resistance: EM 20 Resistance: I 20 Resistance: S 20 Resistance: P 20 Evasion (%) 55 Targeting Accuracy 6 Recoil Reduction 2 Offensive Hacking 10 Item Schematics ----------------- None Robot Schematics ------------------ None Fabricated ------------ Nothing Repaired ---------- Nothing Studied --------- None Alien Tech Used ----------------- None Achievements -------------- A New Friend Challenges ------------ None Game ------ Seed RainbowHeatManipulator Manual? 0 Play Time 01:08:56 Cumulative 15.3 hours Start 2026.02.17 @ 16:41:02 End 2026.02.17 @ 21:13:38 Sessions 3 Manual Loads 0 Difficulty Adventurer Special Mode None Game No. 8 Rogue 0 Adventurer 8 Explorer 0 Win Type - Total 0 Types 0/0/0/0/0/0/0/0/0/0 Lore% 12 Gallery% 15 Achievement% 14 Wizard Run 0 Options --------- Layout 0 ASCII 1 Keyboard 1 Movement Arrows Keybinds 0 Fullscreen 1 Font 24/Swanston Map View 113x50 Zoom Use 0% Tactical HUD 1 Map Filters NONE Filters NONE Steam 1 RUN: da54fc40-9625-4ebe-ad3e-ea3f71a87c96